fUSD/lending_fUSD_20251227
["ID","MTS","AMOUNT","RATE_DAILY","PERIOD"]
[399879969,1766799062093,-184.668459,0.00035616,31]
[399879970,1766799062103,-205.372564,0.00035616,31]
[399879971,1766799062113,-184.668459,0.00035616,31]
[399879972,1766799062122,-184.668459,0.00035616,31]
[399879973,1766799062131,-184.668459,0.00035616,31]
[399879974,1766799062141,-184.66846,0.00035616,31]
[399879975,1766799062151,-151.0,0.00035616,31]
[399879976,1766799062161,-151.0,0.00035616,31]
[399879977,1766799062171,-218.123202,0.00035616,31]
[399879978,1766799062181,-151.0,0.00035616,31]
[399879979,1766799062190,-151.0,0.00035616,31]
[399879980,1766799062199,-151.0,0.00035616,31]
[399879981,1766799062209,-249.632414,0.00035616,31]
[399879982,1766799062219,-151.0,0.00035616,31]
[399879983,1766799062230,-151.0,0.00035616,31]
[399879984,1766799062239,-151.0,0.00035616,31]
[399879985,1766799062248,-151.0,0.00035616,31]
[399879986,1766799062258,-151.0,0.00035616,31]
[399879987,1766799062267,-151.0,0.00035616,31]
[399879988,1766799062277,-151.0,0.00035616,31]
[399879989,1766799062287,-151.0,0.00035616,31]
[399879990,1766799062296,-151.0,0.00035616,31]
[399879991,1766799062305,-151.0,0.00035616,31]
[399879992,1766799062314,-151.0,0.00035616,31]
[399879993,1766799062324,-151.0,0.00035616,31]
[399879994,1766799062333,-151.0,0.00035616,31]
[399879995,1766799062343,-151.0,0.00035616,31]
[399879996,1766799062352,-151.0,0.00035616,31]
[399879997,1766799062361,-151.0,0.00035616,31]
[399879998,1766799062370,-180.629516,0.00035616,31]
[399879999,1766799062380,-151.0,0.00035616,31]
[399880000,1766799062389,-151.0,0.00035616,31]
[399880001,1766799062399,-151.0,0.00035616,31]
[399880002,1766799062409,-151.0,0.00035616,31]
[399880003,1766799062420,-151.0,0.00035616,31]
[399880004,1766799062429,-151.0,0.00035616,31]
[399880005,1766799062439,-465.168586,0.00035616,31]
[399880006,1766799062452,-151.0,0.00035616,31]
[399880007,1766799062464,-465.168586,0.00035616,31]
[399880008,1766799062473,-151.0,0.00035616,31]
[399880009,1766799062483,-151.0,0.00035616,31]
[399880010,1766799062492,-151.0,0.00035616,31]
[399880011,1766799062501,-465.168586,0.00035616,31]
[399880012,1766799062511,-151.0,0.00035616,31]
[399880013,1766799062520,-151.0,0.00035616,31]
[399880014,1766799062530,-465.168586,0.00035616,31]
[399880015,1766799062539,-151.0,0.00035616,31]
[399880016,1766799062549,-465.168586,0.00035616,31]
[399880017,1766799062562,-151.0,0.00035616,31]
[399880018,1766799062578,-233.078184,0.00035616,31]
[399880019,1766799062587,-465.168586,0.00035616,31]
[399880020,1766799062596,-465.168586,0.00035616,31]
[399880021,1766799062606,-177.035371,0.00035616,31]
[399880022,1766799062623,-465.168586,0.00035616,31]
[399880023,1766799062642,-465.168586,0.00035616,31]
[399880024,1766799062652,-465.168586,0.00035616,31]
[399880025,1766799062661,-465.168586,0.00035616,31]
[399880026,1766799062671,-465.168586,0.00035616,31]
[399880027,1766799062681,-184.958523,0.00035616,31]
[399880028,1766799062690,-465.168586,0.00035616,31]
[399880029,1766799062699,-465.168586,0.00035616,31]
[399880030,1766799062710,-465.168586,0.00035616,31]
[399880031,1766799062720,-465.168586,0.00035616,31]
[399880032,1766799062729,-465.168586,0.00035616,31]
[399880033,1766799062739,-465.168586,0.00035616,31]
[399880034,1766799062748,-465.168586,0.00035616,31]
[399880035,1766799062758,-465.168586,0.00035616,31]
[399880036,1766799062767,-151.0,0.00035616,31]
[399880037,1766799062778,-151.0,0.00035616,31]
[399880038,1766799062788,-151.0,0.00035616,31]
[399880039,1766799062798,-151.0,0.00035616,31]
[399880040,1766799062807,-151.0,0.00035616,31]
[399880041,1766799062817,-151.0,0.00035616,31]
[399880042,1766799062827,-151.0,0.00035616,31]
[399880043,1766799062837,-407.936704,0.00035616,31]
[399880044,1766799062846,-151.0,0.00035616,31]
[399880045,1766799062856,-407.936704,0.00035616,31]
[399880046,1766799062866,-182.59858,0.00035616,31]
[399880047,1766799062876,-407.936704,0.00035616,31]
[399880048,1766799062887,-407.936704,0.00035616,31]
[399880049,1766799062896,-407.936704,0.00035616,31]
[399880050,1766799062906,-407.936704,0.00035616,31]
[399880051,1766799062919,-407.936704,0.00035616,31]
[399880052,1766799062929,-407.936704,0.00035616,31]
[399880053,1766799062939,-407.936704,0.00035616,31]
[399880054,1766799062950,-407.936704,0.00035616,31]
[399880055,1766799062962,-407.936704,0.00035616,31]
[399880056,1766799062972,-407.936704,0.00035616,31]
[399880057,1766799062983,-151.0,0.00035616,31]
[399880058,1766799062993,-407.936704,0.00035616,31]
[399880059,1766799063003,-407.936704,0.00035616,31]
[399880060,1766799063013,-407.936704,0.00035616,31]
[399880061,1766799063023,-407.936704,0.00035616,31]
[399880062,1766799063032,-407.936704,0.00035616,31]
[399880063,1766799063042,-407.936704,0.00035616,31]
[399880064,1766799063051,-407.936704,0.00035616,31]
[399880065,1766799063061,-407.936699,0.00035616,31]
[399880066,1766799063070,-153.854335,0.00035616,31]
[399880067,1766799063080,-976.89,0.000357,14]
[399880068,1766799063089,-13664.89,0.000357,2]
[399880069,1766799063098,-26794.0,0.00035702,2]
[399880070,1766799063108,-152.0,0.0003587,4]
[399880071,1766799063118,-152.0,0.0003587,5]
[399880072,1766799063127,-1000.0,0.0003589,5]
[399880073,1766799063136,-50000.0,0.00036,36]
[399880074,1766799063145,-50000.0,0.00036,46]
[399880075,1766799063154,-50000.0,0.00036,26]
[399880076,1766799063164,-2000.0,0.00036,30]
[399880077,1766799063173,-1007.0,0.00036,15]
[399880078,1766799063183,-1002.0,0.00036,15]
[399880079,1766799063195,-1692.06910166,0.00036,7]
[399880080,1766799063204,-1312.0,0.00036,2]
[399880081,1766799063213,-266.09064067,0.00036,2]
[399880082,1766799063223,-10792.43317137,0.00036,2]
[399880083,1766799063232,-152.53819194,0.00036,2]
[399880084,1766799063242,-5000.0,0.00036019,2]
[399880085,1766799063253,-5000.0,0.00036034,2]
[399880086,1766799063263,-25000.0,0.00036064,2]
[399880087,1766799063272,-5000.0,0.00036077,2]
[399880088,1766799063281,-5000.0,0.00036097,2]
[399880089,1766799063291,-5000.0,0.00036099,2]
[399880090,1766799063301,-5000.0,0.00036101,2]
[399880091,1766799063310,-661.53,0.00036128,2]
[399880092,1766799063320,-646.99424191,0.00036164,5]
[399880093,1766799063330,-5000.0,0.00036167,2]
[399880094,1766799063339,-5000.0,0.00036177,2]
[399880095,1766799063349,-645.66,0.0003619,2]
[399880096,1766799063359,-5000.0,0.00036238,2]
[399880097,1766799063369,-2500.0,0.00036242,2]
[399880098,1766799063379,-5000.0,0.00036267,2]
[399880099,1766799063389,-25000.0,0.00036271,2]
[399880100,1766799063399,-13664.89,0.000363,2]
[399880101,1766799063409,-25000.0,0.00036358,2]
[399880102,1766799063418,-5000.0,0.00036374,2]
[399880103,1766799063428,-5000.0,0.00036375,2]
[399880104,1766799063438,-5000.0,0.00036377,2]
[399880105,1766799063448,-5000.0,0.00036391,2]
[399880106,1766799063458,-4480.08,0.00036405,2]
[399880107,1766799063468,-5000.0,0.00036408,2]
[399880108,1766799063478,-5000.0,0.00036419,2]
[399880109,1766799063487,-5000.0,0.00036444,2]
[399880110,1766799063497,-5000.0,0.0003646,2]
[399880111,1766799063507,-845.656,0.00036491,45]
[399880112,1766799063516,-5000.0,0.00036494,2]
[399880113,1766799063526,-5000.0,0.00036497,2]
[399880114,1766799063535,-1501.45,0.00036518,2]
[399880115,1766799063546,-5000.0,0.00036562,2]
[399880116,1766799063556,-971.65,0.00036565,2]
[399880117,1766799063565,-4757.61,0.00036616,2]
[399880118,1766799063575,-5000.0,0.00036631,2]
[399880119,1766799063584,-5000.0,0.0003666,2]
[399880120,1766799063594,-5000.0,0.00036663,2]
[399880121,1766799063604,-25000.0,0.0003667,2]
[399880122,1766799063614,-25000.0,0.0003668,2]
[399880123,1766799063624,-5000.0,0.00036681,2]
[399880124,1766799063634,-556.36539957,0.00036684,2]
[399880125,1766799063644,-5000.0,0.00036693,2]
[399880126,1766799063654,-1326.03,0.00036712,120]
[399880127,1766799063664,-5000.0,0.00036725,2]
[399880128,1766799063674,-5000.0,0.00036763,2]
[399880129,1766799063683,-5000.0,0.00036778,2]
[399880130,1766799063693,-25000.0,0.00036786,2]
[399880131,1766799063702,-2431.0,0.00036794,2]
[399880132,1766799063712,-13664.89,0.000368,2]
[399880133,1766799063722,-1600.83384442,0.000368,2]
[399880134,1766799063732,-1943.01766144,0.000368,2]
[399880135,1766799063742,-5000.0,0.0003686,2]
[399880136,1766799063751,-362.5656,0.00036888,7]
[399880137,1766799063762,-14042.8692645,0.0003691,2]
[399880138,1766799063772,-2553.93,0.00036937,2]
[399880139,1766799063781,-25000.0,0.00036939,2]
[399880140,1766799063791,-5000.0,0.0003697,2]
[399880141,1766799063801,-500.0,0.00036986,2]
[399880142,1766799063811,-500.0,0.00036987,2]
[399880143,1766799063821,-500.0,0.00036988,2]
[399880144,1766799063831,-500.0,0.00036989,2]
[399880145,1766799063842,-500.0,0.0003699,2]
[399880146,1766799063852,-500.0,0.00036991,2]
[399880147,1766799063862,-500.0,0.00036992,2]
[399880148,1766799063872,-2553.92,0.00036993,2]
[399880149,1766799063882,-500.0,0.00036993,2]
[399880150,1766799063892,-500.0,0.00036994,2]
[399880151,1766799063903,-500.0,0.00036995,2]
[399880152,1766799063916,-499.9998,0.00036996,2]
[399880153,1766799063926,-50000.0,0.00037,37]
[399880154,1766799063936,-50000.0,0.00037,47]
[399880155,1766799063947,-50000.0,0.00037,47]
[399880156,1766799063958,-50000.0,0.00037,27]
[399880157,1766799063968,-2000.0,0.00037,30]
[399880158,1766799063978,-750.0,0.00037,2]
[399880159,1766799063988,-164.65165459,0.00037,2]
[399880160,1766799063998,-1263.0,0.00037014,2]
[399880161,1766799064008,-912.0,0.00037014,2]
[399880162,1766799064018,-1198.0,0.00037014,2]
[399880163,1766799064028,-177.93131679,0.000372,120]
[399880164,1766799064037,-4305.40700923,0.0003759,2]
[399880165,1766799064047,-1326.03,0.00037808,120]
[399880166,1766799064058,-200.84763669,0.0003788,2]
[399880167,1766799064068,-710.7,0.00037995,5]
[399880168,1766799064079,-50000.0,0.00038,38]
[399880169,1766799064088,-50000.0,0.00038,48]
[399880170,1766799064099,-50000.0,0.00038,58]
[399880171,1766799064108,-2000.0,0.00038,30]
[399880172,1766799064119,-291.36686698,0.00038,14]
[399880173,1766799064135,-976.89,0.00038,14]
[399880174,1766799064145,-500.0,0.00038,2]
[399880175,1766799064156,-500.0,0.00038,2]
[399880176,1766799064166,-500.0,0.00038,2]
[399880177,1766799064177,-500.0,0.00038,2]
[399880178,1766799064187,-500.0,0.00038,2]
[399880179,1766799064197,-500.0,0.00038,2]
[399880180,1766799064208,-500.0,0.00038,2]
[399880181,1766799064219,-500.0,0.00038,2]
[399880182,1766799064229,-500.0,0.00038,2]
[399880183,1766799064239,-252.28083959,0.00038,2]
[399880184,1766799064248,-1312.0,0.00038,2]
[399880185,1766799064259,-576.95091935,0.00038053,2]
[399880186,1766799064270,-153.0,0.00038168,20]
[399880187,1766799064280,-481.2,0.00038356,24]
[399880188,1766799064290,-235.32,0.00038356,16]
[399880189,1766799064300,-350.0,0.00038356,30]
[399880190,1766799064310,-500.0,0.00038356,10]
[399880191,1766799064320,-533.23543496,0.00038356,10]
[399880192,1766799064330,-500.0,0.00038356,10]
[399880193,1766799064340,-500.0,0.00038356,10]
[399880194,1766799064350,-500.0,0.00038356,10]
[399880195,1766799064360,-500.0,0.00038356,10]
[399880196,1766799064369,-500.0,0.00038356,10]
[399880197,1766799064379,-677.45,0.00038356,10]
[399880198,1766799064389,-424.40503926,0.00038356,2]
[399880199,1766799064398,-500.0,0.00038356,10]
[399880200,1766799064408,-500.0,0.00038356,10]
[399880201,1766799064418,-500.0,0.00038356,10]
[399880202,1766799064428,-500.0,0.00038356,10]
[399880203,1766799064438,-500.0,0.00038356,10]
[399880204,1766799064448,-500.0,0.00038356,10]
[399880205,1766799064458,-500.0,0.00038356,10]
[399880206,1766799064468,-500.0,0.00038356,10]
[399880207,1766799064478,-500.0,0.00038356,10]
[399880208,1766799064496,-500.0,0.00038356,10]
[399880209,1766799064516,-500.0,0.00038356,10]
[399880210,1766799064526,-500.0,0.00038356,10]
[399880211,1766799064536,-500.0,0.00038356,10]
[399880212,1766799064546,-500.0,0.00038356,10]
[399880213,1766799064556,-500.0,0.00038356,10]
[399880214,1766799064567,-2167.53,0.00038356,10]
[399880215,1766799064577,-444.66686991,0.00038356,10]
[399880216,1766799064586,-500.0,0.00038356,10]
[399880217,1766799064596,-500.0,0.00038356,10]
[399880218,1766799064607,-500.0,0.00038356,10]
[399880219,1766799064617,-500.0,0.00038356,10]
[399880220,1766799064627,-295.63715668,0.00038356,10]
[399880221,1766799064637,-612.36,0.00038356,10]
[399880222,1766799064647,-500.0,0.00038356,10]
[399880223,1766799064657,-500.0,0.00038356,10]
[399880224,1766799064667,-181.08010149,0.00038356,10]
[399880225,1766799064677,-405.36769074,0.00038356,10]
[399880226,1766799064688,-500.0,0.00038356,10]
[399880227,1766799064697,-500.0,0.00038356,10]
[399880228,1766799064707,-151.0,0.00038356,10]
[399880229,1766799064717,-500.0,0.00038356,10]
[399880230,1766799064728,-500.0,0.00038356,10]
[399880231,1766799064979,-500.0,0.00038356,2]
[399880232,1766799064992,-594.26303559,0.00038356,10]
[399880233,1766799065003,-500.0,0.00038356,10]
[399880234,1766799065013,-500.0,0.00038356,10]
[399880235,1766799065022,-500.0,0.00038356,10]
[399880236,1766799065032,-500.0,0.00038356,10]
[399880237,1766799065043,-500.0,0.00038356,10]
[399880238,1766799065053,-500.0,0.00038356,10]
[399880239,1766799065063,-500.0,0.00038356,10]
[399880240,1766799065073,-500.0,0.00038356,10]
[399880241,1766799065083,-500.0,0.00038356,10]
[399880242,1766799065092,-904.9,0.00038356,10]
[399880243,1766799065102,-500.0,0.00038356,10]
[399880244,1766799065112,-500.0,0.00038356,10]
[399880245,1766799065122,-508.39819944,0.00038356,2]
[399880246,1766799065132,-500.0,0.00038356,10]
[399880247,1766799065142,-500.0,0.00038356,10]
[399880248,1766799065151,-228.907377,0.00038356,10]
[399880249,1766799065162,-213.176321,0.00038356,10]
[399880250,1766799065171,-384.049771,0.00038356,120]
[399880251,1766799065181,-384.049771,0.00038356,120]
[399880252,1766799065190,-384.049771,0.00038356,120]
[399880253,1766799065200,-384.049771,0.00038356,120]
[399880254,1766799065210,-384.049771,0.00038356,120]
[399880255,1766799065220,-384.049771,0.00038356,120]
[399880256,1766799065229,-384.049771,0.00038356,120]
[399880257,1766799065239,-384.049771,0.00038356,120]
[399880258,1766799065249,-384.049771,0.00038356,120]
[399880259,1766799065258,-384.049771,0.00038356,120]
[399880260,1766799065269,-384.049771,0.00038356,120]
[399880261,1766799065278,-384.049771,0.00038356,120]
[399880262,1766799065288,-384.049771,0.00038356,120]
[399880263,1766799065298,-384.049771,0.00038356,120]
[399880264,1766799065307,-384.049771,0.00038356,120]
[399880265,1766799065317,-384.049771,0.00038356,120]
[399880266,1766799065327,-384.049771,0.00038356,120]
[399880267,1766799065336,-384.049771,0.00038356,120]
[399880268,1766799065346,-384.049771,0.00038356,120]
[399880269,1766799065356,-384.049779,0.00038356,120]
[399880270,1766799065365,-151.0,0.00038356,120]
[399880271,1766799065376,-151.0,0.00038356,120]
[399880272,1766799065386,-151.0,0.00038356,120]
[399880273,1766799065395,-151.0,0.00038356,120]
[399880274,1766799065405,-151.0,0.00038356,120]
[399880275,1766799065414,-151.0,0.00038356,120]
[399880276,1766799065423,-151.0,0.00038356,120]
[399880277,1766799065433,-151.0,0.00038356,120]
[399880278,1766799065443,-151.0,0.00038356,120]
[399880279,1766799065453,-151.0,0.00038356,120]
[399880280,1766799065463,-151.0,0.00038356,120]
[399880281,1766799065473,-251.190298,0.00038356,120]
[399880282,1766799065483,-1000.0,0.00038356,5]
[399880283,1766799065493,-173.13,0.000384,14]
[399880284,1766799065503,-501.79270198,0.00038484,2]
[399880285,1766799065512,-300.0,0.00038484,2]
[399880286,1766799065522,-300.0,0.00038484,2]
[399880287,1766799065532,-400.0,0.00038484,2]
[399880288,1766799065542,-307.09858161,0.00038484,2]
[399880289,1766799065552,-1024.34954308,0.00038484,2]
[399880290,1766799065562,-318.15358389,0.00038484,2]
[399880291,1766799065572,-304.09114478,0.00038484,2]
[399880292,1766799065581,-300.0,0.00038484,2]
[399880293,1766799065591,-300.0,0.00038484,2]
[399880294,1766799065601,-367.7698792,0.00038484,2]
[399880295,1766799065610,-300.0,0.00038484,2]
[399880296,1766799065620,-300.0,0.00038484,2]
[399880297,1766799065630,-303.31129351,0.00038484,2]
[399880298,1766799065639,-300.0,0.00038484,2]
[399880299,1766799065649,-841.20936968,0.00038484,2]
[399880300,1766799065659,-300.0,0.00038484,2]
[399880301,1766799065668,-300.0,0.00038484,2]
[399880302,1766799065678,-300.0,0.00038484,2]
[399880303,1766799065687,-594.87351398,0.00038484,2]
[399880304,1766799065697,-363.86225586,0.00038484,2]
[399880305,1766799065707,-300.0,0.00038484,2]
[399880306,1766799065716,-300.0,0.00038484,2]
[399880307,1766799065726,-300.0,0.00038484,2]
[399880308,1766799065736,-300.0,0.00038484,2]
[399880309,1766799065745,-300.0,0.00038484,2]
[399880310,1766799065755,-300.0,0.00038484,2]
[399880311,1766799065766,-302.92488821,0.00038484,2]
[399880312,1766799065775,-300.0,0.00038484,2]
[399880313,1766799065785,-577.06083553,0.00038484,2]
[399880314,1766799065795,-300.0,0.00038484,2]
[399880315,1766799065804,-1082.03553681,0.00038484,2]
[399880316,1766799065814,-300.0,0.00038484,2]
[399880317,1766799065824,-304.09114478,0.00038484,2]
[399880318,1766799065834,-300.0,0.00038484,2]
[399880319,1766799065844,-300.0,0.00038484,2]
[399880320,1766799065853,-367.7698792,0.00038484,2]
[399880321,1766799065863,-300.0,0.00038484,2]
[399880322,1766799065873,-300.0,0.00038484,2]
[399880323,1766799065883,-303.31129351,0.00038484,2]
[399880324,1766799065894,-300.0,0.00038484,2]
[399880325,1766799065904,-841.20936968,0.00038484,2]
[399880326,1766799065916,-300.0,0.00038484,2]
[399880327,1766799065925,-300.0,0.00038484,2]
[399880328,1766799065934,-300.0,0.00038484,2]
[399880329,1766799065944,-594.87351398,0.00038484,2]
[399880330,1766799065953,-363.86225586,0.00038484,2]
[399880331,1766799065963,-300.0,0.00038484,2]
[399880332,1766799065973,-300.0,0.00038484,2]
[399880333,1766799065982,-300.0,0.00038484,2]
[399880334,1766799065992,-300.0,0.00038484,2]
[399880335,1766799066002,-300.0,0.00038484,2]
[399880336,1766799066011,-300.0,0.00038484,2]
[399880337,1766799066021,-302.92488821,0.00038484,2]
[399880338,1766799066032,-300.0,0.00038484,2]
[399880339,1766799066042,-577.06083553,0.00038484,2]
[399880340,1766799066052,-300.0,0.00038484,2]
[399880341,1766799066061,-1082.03553681,0.00038484,2]
[399880342,1766799066071,-300.0,0.00038484,2]
[399880343,1766799066081,-153.0,0.00038561,20]
[399880344,1766799066090,-500.0,0.0003863,10]
[399880345,1766799066100,-187.38192422,0.0003863,10]
[399880346,1766799066110,-500.0,0.0003863,10]
[399880347,1766799066120,-500.0,0.0003863,10]
[399880348,1766799066130,-500.0,0.0003863,10]
[399880349,1766799066140,-500.0,0.0003863,10]
[399880350,1766799066149,-677.45,0.0003863,10]
[399880351,1766799066159,-500.0,0.0003863,10]
[399880352,1766799066168,-500.0,0.0003863,10]
[399880353,1766799066178,-500.0,0.0003863,10]
[399880354,1766799066188,-500.0,0.0003863,10]
[399880355,1766799066197,-500.0,0.0003863,10]
[399880356,1766799066207,-500.0,0.0003863,10]
[399880357,1766799066216,-500.0,0.0003863,10]
[399880358,1766799066226,-500.0,0.0003863,10]
[399880359,1766799066235,-500.0,0.0003863,10]
[399880360,1766799066245,-500.0,0.0003863,10]
[399880361,1766799066255,-500.0,0.0003863,10]
[399880362,1766799066264,-500.0,0.0003863,10]
[399880363,1766799066274,-500.0,0.0003863,10]
[399880364,1766799066284,-500.0,0.0003863,10]
[399880365,1766799066294,-500.0,0.0003863,10]
[399880366,1766799066305,-2167.53,0.0003863,10]
[399880367,1766799066315,-500.0,0.0003863,10]
[399880368,1766799066324,-500.0,0.0003863,10]
[399880369,1766799066334,-228.15290195,0.0003863,10]
[399880370,1766799066343,-500.0,0.0003863,10]
[399880371,1766799066352,-500.0,0.0003863,10]
[399880372,1766799066363,-500.0,0.0003863,10]
[399880373,1766799066372,-500.0,0.0003863,10]
[399880374,1766799066382,-500.0,0.0003863,10]
[399880375,1766799066392,-500.0,0.0003863,10]
[399880376,1766799066401,-500.0,0.0003863,10]
[399880377,1766799066411,-500.0,0.0003863,2]
[399880378,1766799066422,-500.0,0.0003863,10]
[399880379,1766799066432,-325.20014626,0.0003863,10]
[399880380,1766799066442,-500.0,0.0003863,10]
[399880381,1766799066451,-500.0,0.0003863,10]
[399880382,1766799066461,-500.0,0.0003863,10]
[399880383,1766799066471,-401.34049489,0.0003863,10]
[399880384,1766799066481,-500.0,0.0003863,10]
[399880385,1766799066491,-500.0,0.0003863,10]
[399880386,1766799066501,-500.0,0.0003863,10]
[399880387,1766799066512,-904.9,0.0003863,10]
[399880388,1766799066522,-500.0,0.0003863,10]
[399880389,1766799066532,-500.0,0.0003863,10]
[399880390,1766799066542,-500.0,0.0003863,10]
[399880391,1766799066551,-500.0,0.0003863,10]
[399880392,1766799066562,-986.85670667,0.00038767,5]
[399880393,1766799066572,-10259.4762391,0.000388,2]
[399880394,1766799066582,-15043.93216018,0.00038874,2]
[399880395,1766799066592,-3124.11357676,0.0003888,120]
[399880396,1766799066742,-7182.87468006,0.0003888,120]
[399880398,1766799066777,381.77826782,0.00030136,120]
[399880399,1766799066868,170.77222027,0.00030136,120]
[399880400,1766799066900,-3472.299,0.00015794,2]
[399880401,1766799066912,-3460.0,0.00018794,2]
[399880402,1766799066924,-1000.0,0.00021918,2]
[399880403,1766799066933,-1000.0,0.00022192,2]
[399880404,1766799066944,-1000.0,0.00022466,2]
[399880405,1766799066955,-554.37,0.00023753,2]
[399880406,1766799066966,-178.57,0.00029315,2]
[399880407,1766799066976,-61693.01174218,0.0003888,120]
[399880408,1766799066989,-3263.0908,0.00038888,30]
[399880409,1766799066999,-571.70503714,0.00038904,10]
[399880410,1766799067009,-500.0,0.00038904,10]
[399880411,1766799067020,-500.0,0.00038904,10]
[399880412,1766799067030,-500.0,0.00038904,10]
[399880413,1766799067039,-500.0,0.00038904,10]
[399880414,1766799067049,-677.45,0.00038904,10]
[399880415,1766799067059,-500.0,0.00038904,10]
[399880416,1766799067069,-500.0,0.00038904,10]
[399880417,1766799067079,-500.0,0.00038904,10]
[399880418,1766799067089,-500.0,0.00038904,10]
[399880419,1766799067099,-500.0,0.00038904,10]
[399880420,1766799067110,-500.0,0.00038904,10]
[399880421,1766799067121,-267.69957685,0.00038904,10]
[399880422,1766799067133,-232.30042315,0.00038904,10]
[399880423,1766799067143,-500.0,0.00038904,10]
[399880424,1766799067152,-191.25975347,0.00038904,10]
[399880425,1766799067162,-430.31295286,0.00038904,10]
[399880426,1766799067174,-69.68704714,0.00038904,10]
[399880427,1766799067183,-500.0,0.00038904,10]
[399880428,1766799067193,-500.0,0.00038904,10]
[399880429,1766799067204,-500.0,0.00038904,10]
[399880430,1766799067219,-39.19342929,0.00038904,10]
[399880431,1766799067256,-481.45,0.00022603,2]
[399880432,1766799067266,-435.4498657,0.00023973,2]
[399880433,1766799067278,-29.6001343,0.00023973,2]
[399880434,1766799067288,-659.71,0.00029178,2]
[399880435,1766799067298,-460.80657071,0.00038904,10]
[399880436,1766799067308,-500.0,0.00038904,10]
[399880437,1766799067400,-259.72028258,0.00038904,10]
[399880438,1766799067412,-1907.80971742,0.00038904,10]
[399880439,1766799067422,-500.0,0.00038904,10]
[399880440,1766799067432,-500.0,0.00038904,10]
[399880441,1766799067442,-500.0,0.00038904,10]
[399880442,1766799067451,-271.13733796,0.00038904,10]
[399880443,1766799067462,-228.86266204,0.00038904,10]
[399880444,1766799067472,-490.51952097,0.00038904,10]
[399880445,1766799067483,-9.48047903,0.00038904,10]
[399880446,1766799067492,-500.0,0.00038904,10]
[399880447,1766799067502,-500.0,0.00038904,10]
[399880448,1766799067512,-416.30032531,0.00038904,10]
[399880449,1766799067523,-83.69967469,0.00038904,10]
[399880450,1766799067532,-611.53429264,0.00038904,10]
[399880451,1766799067542,-364.03467458,0.00038904,2]
[399880452,1766799067552,-446.72590179,0.00038904,10]
[399880453,1766799067657,161.79957312,0.00030136,120]
[399880454,1766799067671,-53.27409821,0.00038904,10]
[399880455,1766799067681,-500.0,0.00038904,10]
[399880456,1766799067691,-500.0,0.00038904,10]
[399880457,1766799067700,-500.0,0.00038904,10]
[399880458,1766799067709,-500.0,0.00038904,10]
[399880459,1766799067719,-508.77008503,0.00038904,10]
[399880460,1766799067734,-500.0,0.00038904,10]
[399880461,1766799067743,-237.95581676,0.00038904,10]
[399880462,1766799067803,-666.94418324,0.00038904,10]
[399880463,1766799067812,-500.0,0.00038904,10]
[399880464,1766799067821,-500.0,0.00038904,10]
[399880465,1766799067831,-500.0,0.00038904,10]
[399880466,1766799067841,-500.0,0.00038904,10]
[399880467,1766799067851,-1326.03,0.00038904,120]
[399880468,1766799067861,-9989.14,0.00038904,2]
[399880469,1766799067871,-153.0,0.00038955,20]